bitfinex/quotes_BTCUSD_20240819
["timestamp","ask_amount","ask_price","bid_price","bid_amount"]
[1724078397146,0.06973438,58388.0,58387.0,2.359355]
[1724078397774,0.06973438,58388.0,58387.0,2.016813]
[1724078398366,0.06973438,58388.0,58387.0,2.359355]
[1724078400802,0.06973438,58388.0,58387.0,2.016813]
[1724078401013,0.06973438,58388.0,58387.0,2.359355]
[1724078401826,0.15233438,58388.0,58387.0,0.003]
[1724078402227,0.15233438,58388.0,58387.0,0.516813]
[1724078403031,0.15233438,58388.0,58387.0,0.859355]
[1724078403280,0.15233438,58388.0,58387.0,0.516813]
[1724078404678,0.06973438,58388.0,58387.0,1.201897]
[1724078404883,1.1e-07,58394.0,58387.0,0.51689077]
[1724078405096,1.1e-07,58394.0,58393.0,1.620777]
[1724078405305,1.1e-07,58394.0,58393.0,3.31512577]
[1724078405523,1.1e-07,58394.0,58393.0,3.41512577]
[1724078407456,0.00400011,58394.0,58393.0,3.42712577]
[1724078407907,1.1e-07,58394.0,58393.0,3.42712577]
[1724078408111,1.1e-07,58394.0,58393.0,3.43812577]
[1724078408539,1.1e-07,58394.0,58393.0,3.01711977]
[1724078408739,0.06630011,58394.0,58393.0,3.01711977]
[1724078410143,1.1e-07,58394.0,58393.0,3.01711977]
[1724078411402,1.1e-07,58394.0,58393.0,3.0274563]
[1724078414802,1.1e-07,58394.0,58393.0,3.1088563]
[1724078414978,1.1e-07,58394.0,58393.0,3.50521992]
[1724078415405,1.1e-07,58394.0,58393.0,3.84972592]
[1724078415594,1.1e-07,58394.0,58393.0,3.50521992]
[1724078415800,1.1e-07,58394.0,58393.0,3.50721992]
[1724078416200,1.1e-07,58394.0,58393.0,3.84972592]
[1724078416645,1.1e-07,58394.0,58393.0,3.45531992]
[1724078417177,1.1e-07,58394.0,58393.0,3.4513623]
[1724078417378,1.1e-07,58394.0,58393.0,3.3699623]
[1724078418739,1.1e-07,58394.0,58393.0,3.0274563]
[1724078419506,1.1e-07,58394.0,58393.0,2.04809553]
[1724078419723,0.06280011,58394.0,58393.0,0.195253]
[1724078419928,0.06280011,58394.0,58393.0,0.880265]
[1724078420141,0.07223314,58394.0,58393.0,0.881084]
[1724078420603,0.072233,58394.0,58393.0,1.21259]
[1724078420813,0.07223305,58394.0,58393.0,0.864084]
[1724078421024,0.07223305,58394.0,58393.0,0.964084]
[1724078421230,0.07223305,58394.0,58393.0,0.970084]
[1724078421878,0.14813305,58394.0,58393.0,0.285072]
[1724078422094,0.14813305,58394.0,58393.0,0.627578]
[1724078422557,0.14813305,58394.0,58393.0,0.970084]
[1724078422995,0.07223305,58394.0,58393.0,0.970084]
[1724078423869,0.08838079,58394.0,58393.0,0.285072]
[1724078424277,0.16838253,58394.0,58393.0,0.285072]
[1724078424692,0.33963253,58394.0,58393.0,0.012819]
[1724078424897,1.41882438,58394.0,58393.0,0.006819]
[1724078425107,1.41882438,58394.0,58393.0,0.000819]
[1724078425108,1.79303682,58394.0,58393.0,0.000819]
[1724078425318,2.12234317,58394.0,58393.0,0.000819]
[1724078425534,2.12234317,58394.0,58387.0,0.001819]
[1724078425535,0.653904,58388.0,58387.0,0.001819]
[1724078425747,0.93521306,58388.0,58387.0,0.001819]
[1724078426186,0.94550698,58388.0,58387.0,0.001819]
[1724078426395,0.59267706,58388.0,58387.0,0.001819]
[1724078426625,0.93521306,58388.0,58387.0,0.001819]
[1724078427248,0.59267706,58388.0,58387.0,0.001819]
[1724078427458,0.6029712,58388.0,58387.0,0.001819]
[1724078427691,0.9495072,58388.0,58387.0,0.001819]
[1724078427894,1.28174906,58388.0,58387.0,0.000819]
[1724078428296,1.29604323,58388.0,58387.0,0.001819]
[1724078428501,1.29328393,58388.0,58387.0,0.002819]
[1724078429599,1.42137224,58388.0,58387.0,0.002819]
[1724078429733,1.93525701,58388.0,58387.0,0.002819]
[1724078430119,1.93525701,58388.0,58380.0,0.00182]
[1724078430120,0.856442,58381.0,58380.0,0.00082]
[1724078430328,1.61396871,58381.0,58380.0,0.00082]
[1724078430804,1.27139171,58381.0,58380.0,0.00082]
[1724078431049,1.40975344,58381.0,58380.0,0.00082]
[1724078431365,0.33827268,58381.0,58380.0,0.00182]
[1724078431558,0.42310606,58381.0,58380.0,0.00282]
[1724078431806,0.76568306,58381.0,58380.0,0.00282]
[1724078432049,0.76568306,58381.0,58375.0,0.00082]
[1724078432050,0.171303,58376.0,58375.0,0.00082]
[1724078432308,1.10063306,58376.0,58375.0,0.00082]
[1724078432572,1.36582942,58376.0,58375.0,0.00082]
[1724078432822,1.3658401,58376.0,58375.0,0.00082]
[1724078433102,1.02381036,58376.0,58375.0,0.00082]
[1724078433336,0.85656,58373.0,58372.0,0.00082]
[1724078433611,1.78737118,58373.0,58372.0,0.00082]
[1724078433907,1.56240855,58373.0,58372.0,0.00082]
[1724078434111,0.50890536,58373.0,58372.0,0.00082]
[1724078434386,0.38978654,58373.0,58372.0,0.00082]
[1724078434627,0.33860773,58373.0,58372.0,0.00082]
[1724078434848,1.03085573,58373.0,58372.0,0.00182]
[1724078435142,1.23374461,58373.0,58372.0,0.00182]
[1724078435338,1.60922381,58373.0,58372.0,0.00182]
[1724078435576,1.45019477,58373.0,58372.0,0.00182]
[1724078436282,1.45919477,58373.0,58372.0,0.00282]
[1724078436521,1.43360058,58373.0,58372.0,0.00282]
[1724078436792,1.7705393,58373.0,58372.0,0.00282]
[1724078437036,1.74194357,58373.0,58372.0,0.00282]
[1724078437276,1.60595203,58373.0,58372.0,0.00282]
[1724078437511,1.62451269,58373.0,58372.0,0.00182]
[1724078437773,1.62451269,58373.0,58372.0,0.00082]
[1724078437774,1.61751269,58373.0,58372.0,0.00082]
[1724078438005,0.1396,58362.0,58360.0,0.171349]
[1724078438277,0.1396,58362.0,58361.0,0.00209396]
[1724078439025,0.063,58366.0,58364.0,0.171337]
[1724078439198,0.063,58366.0,58365.0,0.171335]
[1724078439428,0.063,58366.0,58365.0,0.51618747]
[1724078439649,0.4676,58373.0,58365.0,0.51618747]
[1724078439650,0.0627,58370.0,58368.0,0.171325]
[1724078439908,0.00943883,58369.0,58367.0,0.171329]
[1724078440134,0.0627,58370.0,58367.0,0.171329]
[1724078440364,0.00943876,58369.0,58368.0,0.00218147]
[1724078440795,0.00943876,58369.0,58367.0,0.171329]
[1724078441020,0.0627,58370.0,58368.0,0.00218147]
[1724078441288,0.01843872,58369.0,58368.0,0.171326]
[1724078441577,0.009,58369.0,58368.0,0.171326]
[1724078442269,0.009,58369.0,58365.0,0.171334]
[1724078442477,0.0825,58368.0,58363.0,0.17134]
[1724078442672,0.0825,58368.0,58367.0,0.001]
[1724078442880,0.09193896,58368.0,58367.0,0.001]
[1724078443076,0.26326496,58368.0,58367.0,0.001]
[1724078443271,0.0825,58368.0,58367.0,0.001]
[1724078443472,0.00943897,58368.0,58367.0,0.172329]
[1724078443731,0.007,58369.0,58367.0,0.172329]
[1724078443901,0.0627,58370.0,58367.0,0.171329]
[1724078444103,0.0627,58370.0,58369.0,0.51397]
[1724078445192,0.0737,58370.0,58369.0,0.51397]
[1724078445406,0.011,58370.0,58369.0,0.51397]
[1724078445632,0.014,58370.0,58369.0,0.856617]
[1724078446058,0.011,58370.0,58369.0,0.856617]
[1724078446465,0.0663,58375.0,58370.0,0.342637]
[1724078446645,0.00943787,58374.0,58372.0,0.171313]
[1724078446880,0.00943787,58373.0,58372.0,0.856573]
[1724078447085,0.0663,58375.0,58374.0,0.513927]
[1724078447296,0.07573742,58375.0,58374.0,0.513927]
[1724078447875,0.07573742,58375.0,58374.0,2.013927]
[1724078448343,0.07573742,58375.0,58374.0,2.356545]
[1724078448549,0.08373742,58375.0,58374.0,2.357545]
[1724078448754,0.08373742,58375.0,58374.0,2.014927]
[1724078449601,0.08373742,58375.0,58374.0,1.672309]
[1724078449830,0.08373742,58375.0,58374.0,2.014927]
[1724078450035,0.08373742,58375.0,58374.0,1.672309]
[1724078450240,0.09989288,58375.0,58374.0,2.014927]
[1724078450519,0.09989288,58375.0,58374.0,1.67446554]
[1724078450717,0.09989288,58375.0,58374.0,2.35970154]
[1724078450961,0.0837376,58375.0,58374.0,2.35970154]
[1724078451138,0.0174376,58375.0,58374.0,2.70231954]
[1724078451339,0.0174376,58375.0,58374.0,2.78521954]
[1724078451953,0.008,58375.0,58374.0,2.78521954]
[1724078452076,0.01743636,58375.0,58374.0,2.78521954]
[1724078452282,0.01743636,58375.0,58374.0,2.95656831]
[1724078452283,0.008,58375.0,58374.0,2.95656831]
[1724078452727,0.008,58375.0,58374.0,3.05656831]
[1724078452926,0.008,58375.0,58374.0,3.06679869]
[1724078453294,0.003,58375.0,58374.0,3.06579869]
[1724078453511,0.003,58375.0,58374.0,3.07279869]
[1724078453730,0.004,58375.0,58374.0,3.07279869]
[1724078454388,0.01043625,58375.0,58374.0,3.07279869]
[1724078454554,0.01143625,58375.0,58374.0,3.08079869]
[1724078454755,0.002,58375.0,58374.0,3.08079869]
[1724078455119,0.002,58375.0,58374.0,3.44641669]
[1724078455324,0.002,58375.0,58374.0,3.44737431]
[1724078455447,0.002,58375.0,58374.0,3.44641669]
[1724078455655,0.002,58375.0,58374.0,3.44737431]
[1724078455866,0.002,58375.0,58374.0,3.85239231]
[1724078456696,0.001,58375.0,58374.0,4.18801031]
[1724078456900,0.000902,58388.0,58387.0,1.541439]
[1724078457104,0.000902,58388.0,58387.0,2.20918777]
[1724078457311,0.000902,58388.0,58387.0,2.21123958]
[1724078457515,0.000902,58388.0,58387.0,3.71123958]
[1724078457931,0.000902,58388.0,58387.0,3.70918777]
[1724078459383,0.000902,58388.0,58387.0,3.72018777]
[1724078459807,0.000902,58388.0,58387.0,3.42598777]
[1724078460944,0.000902,58388.0,58387.0,3.43298777]
[1724078461169,0.000902,58388.0,58387.0,3.42198777]
[1724078461371,0.000902,58388.0,58387.0,3.08991567]
[1724078461575,0.000902,58388.0,58387.0,3.09591567]
[1724078461798,0.000902,58388.0,58387.0,3.09091567]
[1724078462216,0.000902,58388.0,58387.0,3.02371567]
[1724078462631,0.000902,58388.0,58387.0,2.63570377]
[1724078462842,0.000902,58388.0,58387.0,2.474355]
[1724078463055,0.000902,58388.0,58387.0,2.466355]
[1724078463252,0.000902,58388.0,58387.0,2.808897]
[1724078463465,0.000902,58388.0,58387.0,2.474355]
[1724078463676,0.000902,58388.0,58387.0,3.36524577]
[1724078463885,0.000902,58388.0,58387.0,3.38824577]
[1724078464096,0.000902,58388.0,58387.0,3.38024577]
[1724078464331,0.000902,58388.0,58387.0,3.72878777]
[1724078464953,0.000902,58388.0,58387.0,3.72278777]
[1724078465153,0.000902,58388.0,58387.0,3.71278777]
[1724078465576,0.000902,58388.0,58387.0,3.72278777]
[1724078465771,0.000902,58388.0,58387.0,3.71278777]
[1724078466180,0.000902,58388.0,58387.0,3.72378777]
[1724078466381,0.000902,58388.0,58387.0,3.71278777]
[1724078466588,0.000902,58388.0,58387.0,3.72078777]
[1724078466795,0.000902,58388.0,58387.0,3.73478777]
[1724078467203,0.000902,58388.0,58387.0,3.72078777]
[1724078467668,0.000902,58388.0,58387.0,3.71278777]
[1724078468031,0.000902,58388.0,58387.0,3.43258777]
[1724078468400,0.000902,58388.0,58387.0,3.00724577]
[1724078468577,0.000902,58388.0,58387.0,2.99324577]
[1724078469215,0.000902,58388.0,58387.0,3.00724577]
[1724078469472,0.000902,58388.0,58387.0,2.99324577]
[1724078469678,0.079702,58388.0,58387.0,1.02770377]
[1724078470027,0.079702,58388.0,58387.0,2.55270377]
[1724078470229,0.079702,58388.0,58387.0,2.53870377]
[1724078470633,0.079702,58388.0,58387.0,2.53770377]
[1724078470838,0.079702,58388.0,58387.0,1.04370377]
[1724078471088,0.144602,58388.0,58387.0,0.187271]
[1724078471237,0.144602,58388.0,58387.0,0.529813]
[1724078471635,0.065802,58388.0,58387.0,1.214897]
[1724078471832,0.065802,58388.0,58387.0,1.38024577]
[1724078472035,0.065802,58388.0,58387.0,1.37024577]
[1724078472245,0.146302,58388.0,58387.0,1.02770377]
[1724078472437,0.065802,58388.0,58387.0,1.02870377]
[1724078472636,0.065802,58388.0,58387.0,1.02770377]
[1724078473098,0.065802,58388.0,58387.0,1.02970377]
[1724078473304,0.067802,58388.0,58387.0,1.02970377]
[1724078473457,0.002902,58388.0,58387.0,1.71478777]
[1724078473667,0.000902,58388.0,58387.0,1.91708777]
[1724078473862,0.000902,58388.0,58387.0,1.92741838]
[1724078474064,0.001902,58388.0,58387.0,2.26996038]
[1724078474623,0.000902,58388.0,58387.0,2.273918]
[1724078474837,0.000902,58388.0,58387.0,2.366638]
[1724078475036,0.000902,58388.0,58387.0,2.370638]
[1724078475241,0.000902,58388.0,58387.0,3.868638]
[1724078475661,0.000902,58388.0,58387.0,3.83536038]
[1724078475908,0.000902,58388.0,58387.0,3.832318]
[1724078476160,0.000902,58388.0,58387.0,3.869653]
[1724078476400,0.000902,58388.0,58387.0,3.884653]
[1724078476906,0.000902,58388.0,58387.0,3.880653]
[1724078477158,0.000902,58388.0,58387.0,3.874653]
[1724078477397,0.000902,58388.0,58387.0,3.840333]
[1724078477628,0.000902,58388.0,58387.0,3.833333]
[1724078477877,0.000902,58388.0,58387.0,3.489791]
[1724078478137,0.000902,58388.0,58387.0,3.44143338]
[1724078478767,0.000902,58388.0,58387.0,3.41843338]
[1724078479001,0.000902,58388.0,58387.0,2.97589138]
[1724078479209,0.000902,58388.0,58387.0,2.91059138]
[1724078479476,0.000902,58388.0,58387.0,1.23924261]
[1724078479680,0.000902,58388.0,58387.0,1.22524261]
[1724078479881,0.000902,58388.0,58387.0,2.73924261]
[1724078480085,0.000902,58388.0,58387.0,2.72524261]
[1724078480301,0.143902,58388.0,58387.0,0.002015]
[1724078480515,0.15333639,58388.0,58387.0,0.016015]
[1724078480729,0.15333639,58388.0,58387.0,0.030015]
[1724078481156,0.15333639,58388.0,58387.0,0.529828]
[1724078481368,0.15333639,58388.0,58387.0,0.187286]
[1724078481584,0.15333639,58388.0,58387.0,0.190286]
[1724078481793,0.15333639,58388.0,58387.0,0.176286]
[1724078481995,0.16948633,58388.0,58387.0,0.173286]
[1724078482197,0.16948633,58388.0,58387.0,0.179286]
[1724078482605,0.16948633,58388.0,58387.0,0.173286]
[1724078482810,0.143902,58388.0,58387.0,0.175286]
[1724078483017,0.16948711,58388.0,58387.0,0.175286]
[1724078483244,0.16948711,58388.0,58387.0,0.004015]
[1724078483446,0.16948869,58388.0,58387.0,0.175286]
[1724078483652,0.17048869,58388.0,58387.0,0.175286]
[1724078483852,0.17048869,58388.0,58387.0,0.004015]
[1724078484308,0.17048869,58388.0,58387.0,0.175286]
[1724078485679,0.17048869,58388.0,58387.0,0.004015]
[1724078485899,0.73559316,58388.0,58387.0,0.004015]
[1724078486104,0.91723524,58388.0,58387.0,0.004015]
[1724078486303,1.24947793,58388.0,58387.0,0.004015]
[1724078486734,1.30055977,58388.0,58387.0,0.004015]
[1724078486937,1.39962749,58388.0,58387.0,0.004015]
[1724078487144,1.10097501,58388.0,58387.0,0.004015]
[1724078487354,1.02882897,58388.0,58387.0,0.005015]
[1724078487595,1.079937,58388.0,58387.0,0.005015]
[1724078487797,1.02582897,58388.0,58387.0,0.004015]
[1724078487918,1.11712814,58388.0,58387.0,0.004015]
[1724078488122,1.12012695,58388.0,58387.0,0.005015]
[1724078488325,1.07993908,58388.0,58387.0,0.005015]
[1724078488524,1.07995194,58388.0,58387.0,0.005015]
[1724078488737,1.02882778,58388.0,58387.0,0.003015]
[1724078488960,1.10545055,58388.0,58387.0,0.004015]
[1724078489194,1.02882778,58388.0,58387.0,0.004015]
[1724078489408,1.22238369,58388.0,58387.0,0.004015]
[1724078489611,1.27494759,58388.0,58387.0,0.004015]
[1724078489829,1.02882778,58388.0,58387.0,0.004015]
[1724078490037,1.10554135,58388.0,58387.0,0.004015]
[1724078490441,1.0902593,58388.0,58387.0,0.004015]
[1724078490863,1.07996709,58388.0,58387.0,0.004015]
[1724078491065,0.68629178,58388.0,58387.0,0.004015]
[1724078491283,0.15633708,58388.0,58387.0,0.004015]
[1724078491481,0.3437556,58388.0,58387.0,0.004015]
[1724078491679,0.1724876,58388.0,58387.0,0.004015]
[1724078492137,0.0953876,58388.0,58387.0,0.175286]
[1724078492345,0.0953876,58388.0,58387.0,0.003015]
[1724078492543,0.0953876,58388.0,58387.0,0.004015]
[1724078492747,0.0923876,58388.0,58387.0,0.003015]
[1724078493161,0.0963876,58388.0,58387.0,0.004015]
[1724078493975,0.31882621,58388.0,58387.0,0.004015]
[1724078494180,0.2676556,58388.0,58387.0,0.004015]
[1724078494386,0.0963876,58388.0,58387.0,0.004015]
[1724078494835,0.0963876,58388.0,58387.0,0.517828]
[1724078495032,0.01433708,58388.0,58387.0,1.202912]
[1724078495469,0.004902,58388.0,58387.0,1.202912]
[1724078495861,0.000902,58388.0,58387.0,1.200912]
[1724078496331,0.004902,58388.0,58387.0,2.701912]
[1724078496701,0.0143309,58388.0,58387.0,2.701912]
[1724078496901,0.004902,58388.0,58387.0,2.701912]
[1724078497123,0.004902,58388.0,58387.0,2.87326077]
[1724078497275,0.004902,58388.0,58387.0,3.07646077]
[1724078498887,0.000902,58388.0,58387.0,3.07546077]
[1724078499283,0.004902,58388.0,58387.0,3.08146077]
[1724078499702,0.000902,58388.0,58387.0,3.08046077]
[1724078500146,0.01033163,58388.0,58387.0,3.08246077]
[1724078500343,0.062902,58388.0,58387.0,1.307912]
[1724078500553,0.0723298,58388.0,58387.0,0.009015]
[1724078500755,0.08846801,58388.0,58387.0,0.009015]
[1724078500976,0.25973601,58388.0,58387.0,0.009015]
[1724078501382,0.3109203,58388.0,58387.0,0.009015]
[1724078501582,0.6534563,58388.0,58387.0,0.004015]
[1724078501779,1.0788923,58388.0,58387.0,0.004015]
[1724078501992,1.47261254,58388.0,58387.0,0.004015]
[1724078502236,1.75920489,58388.0,58387.0,0.004015]
[1724078502502,1.61887498,58388.0,58387.0,0.002015]
[1724078502718,1.74682819,58388.0,58387.0,0.002015]
[1724078502971,1.62187498,58388.0,58387.0,0.002015]
[1724078503242,1.76010544,58388.0,58387.0,0.002015]
[1724078503488,1.61887188,58388.0,58387.0,0.002015]
[1724078503730,1.62287188,58388.0,58387.0,0.004015]
[1724078503977,1.92215517,58388.0,58387.0,0.004015]
[1724078504208,1.92215753,58388.0,58387.0,0.004015]
[1724078504444,1.0401399,58388.0,58387.0,0.004015]
[1724078504691,0.34663285,58388.0,58387.0,0.004015]
[1724078505125,0.16922836,58388.0,58387.0,0.517828]
[1724078505340,0.07632843,58388.0,58387.0,0.86037]
[1724078505537,0.01432843,58388.0,58387.0,0.86037]
[1724078505747,0.01432843,58388.0,58387.0,2.43647]
[1724078505957,0.01432843,58388.0,58387.0,2.093928]
[1724078506164,0.02646891,58388.0,58387.0,2.016828]
[1724078506372,0.02646891,58388.0,58387.0,2.015828]
[1724078506577,0.01032843,58388.0,58387.0,2.35837]
[1724078506777,0.01032843,58388.0,58387.0,2.35937]
[1724078506983,0.01032843,58388.0,58387.0,2.87426077]
[1724078506984,0.01432843,58388.0,58387.0,2.87426077]
[1724078507191,0.01432843,58388.0,58387.0,3.07966077]
[1724078507192,0.004902,58388.0,58387.0,3.07966077]
[1724078507397,0.004902,58388.0,58387.0,3.42220277]
[1724078507624,0.004902,58388.0,58387.0,3.48256039]
[1724078507829,0.004902,58388.0,58387.0,3.48456039]
[1724078508037,0.004902,58388.0,58387.0,3.82710239]
[1724078508875,0.000902,58388.0,58387.0,3.82710239]
[1724078509081,1.1e-07,58394.0,58393.0,1.54323462]
[1724078509311,1.1e-07,58394.0,58393.0,2.27238339]
[1724078509714,1.1e-07,58394.0,58393.0,2.61488939]
[1724078509926,0.00403111,58407.0,58406.0,0.856075]
[1724078510129,0.00403111,58407.0,58406.0,1.46985377]
[1724078510352,0.00403111,58407.0,58406.0,1.55305377]
[1724078510582,0.00403111,58407.0,58406.0,3.05305377]
[1724078511825,0.00403111,58407.0,58406.0,3.07605377]
[1724078512038,0.00403111,58407.0,58406.0,3.07105377]
[1724078512234,0.00403111,58407.0,58406.0,3.0811042]
[1724078513261,0.00403111,58407.0,58406.0,3.0841042]
[1724078513522,0.00403111,58407.0,58406.0,4.19802182]
[1724078513742,1.1e-07,58407.0,58406.0,4.94247182]
[1724078513950,1.1e-07,58407.0,58406.0,4.94447182]
[1724078514376,0.00902001,58434.0,58431.0,1.615378]
[1724078514579,0.00902001,58434.0,58431.0,2.22901077]
[1724078514809,0.00902001,58434.0,58431.0,1.90972677]
[1724078515040,0.00902001,58434.0,58431.0,3.40972677]
[1724078516502,0.00902001,58434.0,58431.0,3.42272677]
[1724078517353,0.00902001,58434.0,58431.0,3.43672677]
[1724078518028,0.00902001,58434.0,58431.0,3.44879358]
[1724078518242,0.00902001,58434.0,58431.0,3.49315594]
[1724078518458,0.00902001,58434.0,58431.0,3.48015594]
[1724078518656,0.00902001,58434.0,58431.0,3.46615594]
[1724078518870,0.00902001,58434.0,58431.0,3.47915594]
[1724078519487,0.00902001,58434.0,58431.0,3.09055196]
[1724078519910,0.00902001,58434.0,58431.0,3.09155196]
[1724078520331,0.07522001,58434.0,58431.0,2.66516796]
[1724078520536,0.00902001,58434.0,58431.0,2.66516796]
[1724078520747,0.00902001,58434.0,58431.0,3.00745196]
[1724078521370,0.00902001,58434.0,58431.0,2.65116796]
[1724078521803,0.00902001,58434.0,58431.0,2.66016796]
[1724078522015,0.00902001,58434.0,58431.0,3.01345196]
[1724078522244,0.00902001,58434.0,58431.0,3.10705196]
[1724078522460,0.00902001,58434.0,58431.0,3.44933596]
[1724078522684,0.00902001,58434.0,58431.0,3.10705196]
[1724078522895,0.00902001,58434.0,58431.0,3.09405196]
[1724078523306,0.00902001,58434.0,58431.0,3.02145196]
[1724078524380,0.00902001,58434.0,58431.0,2.37471]
[1724078524599,0.06652,58432.0,58431.0,2.37471]
[1724078524828,0.06652,58432.0,58431.0,2.96494277]
[1724078524829,0.00082,58432.0,58431.0,2.96494277]
[1724078525328,0.00082,58432.0,58431.0,2.95694277]
[1724078525736,0.00082,58432.0,58431.0,2.94594277]
[1724078525939,0.00082,58432.0,58431.0,3.31122677]
[1724078526351,0.00182,58432.0,58431.0,3.31122677]
[1724078526565,0.00182,58432.0,58431.0,3.41122677]
[1724078528814,0.00182,58432.0,58431.0,3.08794277]
[1724078529422,0.00182,58432.0,58431.0,3.01134277]
[1724078530658,0.00182,58432.0,58431.0,2.98834277]
[1724078531315,0.00182,58432.0,58431.0,3.07044277]
[1724078531539,0.00182,58432.0,58431.0,3.47112677]
[1724078531956,0.00182,58432.0,58431.0,3.49412677]
[1724078532380,0.00182,58432.0,58431.0,3.49808439]
[1724078532649,0.00182,58432.0,58431.0,3.43572677]
[1724078532920,0.00182,58432.0,58431.0,3.09344277]
[1724078533409,0.00182,58432.0,58431.0,3.43572677]
[1724078533663,0.00182,58432.0,58431.0,2.98834277]
[1724078534876,0.00182,58432.0,58431.0,2.64605877]
[1724078535645,0.00182,58432.0,58431.0,0.0193]
[1724078535646,0.14312,58432.0,58431.0,0.0193]
[1724078536341,0.14312,58432.0,58431.0,0.0113]
[1724078536342,0.997815,58432.0,58431.0,0.0113]
[1724078536555,1.00724275,58432.0,58431.0,0.0113]
[1724078536761,1.02838041,58432.0,58431.0,0.0123]
[1724078536972,0.17268541,58432.0,58431.0,0.0123]
[1724078537180,0.34382441,58432.0,58431.0,0.0123]
[1724078537384,0.17268541,58432.0,58431.0,0.0123]
[1724078537591,0.14712,58432.0,58431.0,0.85701]
[1724078537794,0.14712,58432.0,58431.0,0.514726]
[1724078538006,0.15012,58432.0,58431.0,0.514726]
[1724078538216,0.1595476,58432.0,58431.0,0.514726]
[1724078538435,0.1565476,58432.0,58431.0,0.514726]
[1724078538649,0.1545476,58432.0,58431.0,0.514726]
[1724078538850,0.0753476,58432.0,58431.0,0.85701]
[1724078539055,0.0753476,58432.0,58431.0,0.85801]
[1724078539056,0.0823476,58432.0,58431.0,0.85801]
[1724078539268,0.07292,58432.0,58431.0,0.85801]
[1724078539474,0.07292,58432.0,58431.0,1.37265777]
[1724078539475,0.07534722,58432.0,58431.0,1.37265777]
[1724078539679,0.07534722,58432.0,58431.0,1.03037377]
[1724078539887,0.07534722,58432.0,58431.0,1.39665777]
[1724078539888,0.01082,58432.0,58431.0,1.39665777]
[1724078540095,0.01082,58432.0,58431.0,1.49665777]
[1724078540921,0.01082,58432.0,58431.0,1.49565777]
[1724078541128,0.01724684,58432.0,58431.0,1.49565777]
[1724078541332,0.01724684,58432.0,58431.0,1.49965777]
[1724078541746,0.01024684,58432.0,58431.0,2.99865777]
[1724078542161,0.01024684,58432.0,58431.0,2.97665777]
[1724078543235,0.08844684,58432.0,58431.0,2.463025]
[1724078543427,0.08844683,58432.0,58431.0,2.463025]
[1724078543631,0.08844683,58432.0,58431.0,0.963025]
[1724078543632,0.10458071,58432.0,58431.0,0.963025]
[1724078543839,0.10458208,58432.0,58431.0,0.620741]
[1724078544257,0.10458208,58432.0,58431.0,0.963025]
[1724078544669,0.10458208,58432.0,58431.0,1.305309]
[1724078544670,0.01024733,58432.0,58431.0,1.305309]
[1724078545306,0.02638112,58432.0,58431.0,1.305309]
[1724078545519,0.02638112,58432.0,58431.0,2.805309]
[1724078545729,0.02638112,58432.0,58431.0,2.120741]
[1724078545730,0.02638138,58432.0,58431.0,2.120741]
[1724078546358,0.02638138,58432.0,58431.0,1.678457]
[1724078546359,0.08708138,58432.0,58431.0,1.678457]
[1724078546565,0.08708138,58432.0,58431.0,0.007315]
[1724078546566,0.16528298,58432.0,58431.0,0.007315]
[1724078547406,0.16528298,58432.0,58431.0,0.006315]
[1724078547407,0.16528278,58432.0,58431.0,0.006315]
[1724078548223,0.33642178,58432.0,58431.0,0.002315]
[1724078548642,1.28548383,58432.0,58431.0,0.002315]
[1724078548848,0.1433,58417.0,58414.0,0.00082]
[1724078549059,0.1433,58417.0,58415.0,0.171188]
[1724078549060,0.02556278,58416.0,58415.0,0.171188]
[1724078549270,0.02556278,58416.0,58415.0,0.513565]
[1724078549474,0.02556278,58416.0,58415.0,0.855942]
[1724078549883,0.02556278,58416.0,58415.0,1.36966777]
[1724078549884,0.00942733,58416.0,58415.0,1.36966777]
[1724078550727,0.00942733,58416.0,58415.0,1.71204477]
[1724078550937,0.001,58416.0,58415.0,1.39266777]
[1724078551149,0.001,58416.0,58415.0,1.91334477]
[1724078551383,0.001,58416.0,58415.0,2.25572177]
[1724078551592,0.006,58416.0,58415.0,2.25572177]
[1724078551821,0.001,58416.0,58415.0,3.75948539]
[1724078552033,0.00082,58432.0,58431.0,1.197994]
[1724078552245,0.01024709,58432.0,58431.0,1.46934277]
[1724078552697,0.01024709,58432.0,58431.0,2.96934277]
[1724078552909,0.10938182,58432.0,58431.0,1.771142]
[1724078553124,0.10938182,58432.0,58431.0,2.45571]
[1724078553332,0.10524709,58432.0,58431.0,2.45771]
[1724078553543,0.10524709,58432.0,58431.0,2.97134277]
[1724078553544,0.02224709,58432.0,58431.0,2.97134277]
[1724078554600,0.02224709,58432.0,58431.0,2.798994]
[1724078554601,0.01524709,58432.0,58431.0,2.798994]
[1724078554813,0.01524709,58432.0,58431.0,2.45671]
[1724078554814,0.03138206,58432.0,58431.0,2.45671]
[1724078555021,0.03138206,58432.0,58431.0,1.501]
[1724078555022,0.17768206,58432.0,58431.0,1.501]
[1724078555295,0.17268206,58432.0,58431.0,1.671142]
[1724078555495,0.16054709,58432.0,58431.0,0.171142]
[1724078555713,0.17668231,58432.0,58431.0,0.171142]
[1724078556125,0.17668231,58432.0,58424.0,0.442323]
[1724078556354,0.15112,58432.0,58431.0,0.171142]
[1724078556559,0.17668282,58432.0,58431.0,0.513426]
[1724078556771,0.09468282,58432.0,58431.0,0.85571]
[1724078557190,0.09068282,58432.0,58431.0,0.85571]
[1724078557848,0.09068282,58432.0,58431.0,1.36934277]
[1724078558084,0.01224758,58432.0,58431.0,1.36934277]
[1724078558541,0.01624758,58432.0,58431.0,1.37954652]
[1724078558950,0.01224758,58432.0,58431.0,1.37954652]
[1724078559236,0.01224758,58432.0,58431.0,1.47954652]
[1724078559484,0.01624683,58432.0,58431.0,1.47954652]
[1724078559698,0.01624683,58432.0,58431.0,1.46934277]
[1724078559907,0.01624683,58432.0,58431.0,0.95571]
[1724078560347,0.01624683,58432.0,58431.0,1.297994]
[1724078561742,0.01624683,58432.0,58431.0,2.797994]
[1724078562751,0.01624683,58432.0,58431.0,2.96934277]
[1724078562955,0.01624683,58432.0,58431.0,3.04574277]
[1724078563157,0.01624683,58432.0,58431.0,3.06874277]
[1724078563600,0.00682,58432.0,58431.0,3.06874277]
[1724078563824,0.01624644,58432.0,58431.0,3.06874277]
[1724078564774,0.01624639,58432.0,58431.0,3.06874277]
[1724078564962,0.01624639,58432.0,58431.0,2.99234277]